[Event "Late-Titled-Tuesday-Blitz-September-26-2023"]
[Site "Chess.com"]
[Date "2023.09.26"]
[Round "5"]
[White "IMRosen"]
[Black "DonkyDonkyDonkey"]
[Result "1-0"]
[WhiteElo "2566"]
[BlackElo "2737"]
[TimeControl "180+1"]
[EndTime "14:55:34 PDT"]
[Termination "IMRosen won by resignation"]

1. d4 {[%clk 0:03:00.9]} 1... Nf6 {[%clk 0:03:00]} 2. Bf4 {[%clk 0:03:01.5]}
2... g6 {[%clk 0:03:00.2]} 3. Nc3 {[%clk 0:03:01.6]} 3... d5 {[%clk 0:03:00]} 4.
e3 {[%clk 0:03:02.2]} 4... Bg7 {[%clk 0:03:00.4]} 5. h4 {[%clk 0:03:02.9]} 5...
h5 {[%clk 0:03:00.8]} 6. Nf3 {[%clk 0:03:03.5]} 6... O-O {[%clk 0:03:01]} 7. Ne5
{[%clk 0:03:04.2]} 7... c5 {[%clk 0:03:00.1]} 8. dxc5 {[%clk 0:03:05]} 8... Nc6
{[%clk 0:02:57.9]} 9. Bb5 {[%clk 0:03:00.8]} 9... Bd7 {[%clk 0:02:11.7]} 10.
Nxd7 {[%clk 0:02:50]} 10... Qxd7 {[%clk 0:02:11.1]} 11. a3 {[%clk 0:02:41.3]}
11... a6 {[%clk 0:02:09.3]} 12. Ba4 {[%clk 0:02:27.4]} 12... Qf5 {[%clk
0:01:54.9]} 13. O-O {[%clk 0:02:14.4]} 13... Rad8 {[%clk 0:01:21.5]} 14. Bxc6
{[%clk 0:02:00.9]} 14... bxc6 {[%clk 0:01:22.4]} 15. Bg3 {[%clk 0:02:01.6]}
15... e5 {[%clk 0:01:20.7]} 16. Na4 {[%clk 0:01:59.1]} 16... Ne4 {[%clk
0:01:19.2]} 17. Bh2 {[%clk 0:01:41.4]} 17... d4 {[%clk 0:01:11.4]} 18. Qe2
{[%clk 0:01:24.2]} 18... Qe6 {[%clk 0:01:08.9]} 19. f3 {[%clk 0:01:15.9]} 19...
Nf6 {[%clk 0:01:08.7]} 20. e4 {[%clk 0:01:13.9]} 20... Nd7 {[%clk 0:01:01.1]}
21. Rfd1 {[%clk 0:01:09.1]} 21... Qe7 {[%clk 0:00:58.8]} 22. b4 {[%clk
0:01:08.7]} 22... Qxh4 {[%clk 0:00:58.2]} 23. Nb6 {[%clk 0:00:58.8]} 23... Nxb6
{[%clk 0:00:54.7]} 24. cxb6 {[%clk 0:00:59.7]} 24... Bh6 {[%clk 0:00:54.5]} 25.
Qe1 {[%clk 0:00:38.5]} 25... Be3+ {[%clk 0:00:53.7]} 26. Kh1 {[%clk 0:00:39]}
26... Bf2 {[%clk 0:00:44.8]} 27. g3 {[%clk 0:00:30.9]} 27... Bxe1 {[%clk
0:00:39.3]} 28. gxh4 {[%clk 0:00:31.6]} 28... Bc3 {[%clk 0:00:40]} 29. Rab1
{[%clk 0:00:24.6]} 29... f6 {[%clk 0:00:40.4]} 30. a4 {[%clk 0:00:24.5]} 30...
Rb8 {[%clk 0:00:37.4]} 31. a5 {[%clk 0:00:24.7]} 31... Kf7 {[%clk 0:00:34.8]}
32. Rd3 {[%clk 0:00:18.1]} 32... Ke6 {[%clk 0:00:34.9]} 33. Kg2 {[%clk
0:00:15.1]} 33... Rfc8 {[%clk 0:00:32.4]} 34. Rxc3 {[%clk 0:00:08.1]} 34... dxc3
{[%clk 0:00:32.1]} 35. Bg1 {[%clk 0:00:08.9]} 35... Rd8 {[%clk 0:00:31.1]} 36.
Be3 {[%clk 0:00:09.7]} 36... Rb7 {[%clk 0:00:28.6]} 37. Rb3 {[%clk 0:00:10.1]}
37... Rd6 {[%clk 0:00:11.3]} 38. Rxc3 {[%clk 0:00:10.1]} 38... g5 {[%clk
0:00:11.9]} 39. hxg5 {[%clk 0:00:02.3]} 39... fxg5 {[%clk 0:00:12.8]} 40. Rb3
{[%clk 0:00:02.9]} 40... g4 {[%clk 0:00:12.2]} 41. fxg4 {[%clk 0:00:02.9]} 41...
hxg4 {[%clk 0:00:12.9]} 42. c4 {[%clk 0:00:03.6]} 42... Rf7 {[%clk 0:00:12.9]}
43. b5 {[%clk 0:00:02.2]} 43... cxb5 {[%clk 0:00:12.5]} 44. cxb5 {[%clk
0:00:02.6]} 44... axb5 {[%clk 0:00:12.4]} 45. a6 {[%clk 0:00:03.4]} 45... Rdd7
{[%clk 0:00:08.2]} 46. b7 {[%clk 0:00:03.6]} 46... Rf8 {[%clk 0:00:09]} 47. Rxb5
{[%clk 0:00:03.5]} 47... Rb8 {[%clk 0:00:08.2]} 48. Ba7 {[%clk 0:00:03.2]} 48...
Rd2+ {[%clk 0:00:07.3]} 49. Kg3 {[%clk 0:00:02.8]} 49... Rd3+ {[%clk 0:00:07.9]}
50. Kg2 {[%clk 0:00:02.3]} 50... Rd2+ {[%clk 0:00:08.3]} 51. Kf1 {[%clk
0:00:03]} 51... Rh8 {[%clk 0:00:08.1]} 52. b8=Q {[%clk 0:00:02.7]} 52... Rh1+
{[%clk 0:00:08.3]} 53. Bg1 {[%clk 0:00:03.3]} 53... Rd1+ {[%clk 0:00:08.3]} 54.
Ke2 {[%clk 0:00:04]} 54... Rhxg1 {[%clk 0:00:08.3]} 55. Rb6+ {[%clk 0:00:04.7]}
55... Kf7 {[%clk 0:00:08.3]} 56. Qc7+ {[%clk 0:00:05]} 56... Rd7 {[%clk
0:00:07.3]} 57. Qxd7+ {[%clk 0:00:05.4]} 1-0

[Event "Late-Titled-Tuesday-Blitz-September-26-2023"]
[Site "Chess.com"]
[Date "2023.09.26"]
[Round "5"]
[White "IgorBjelobrk"]
[Black "infinitegiantkiller"]
[Result "1-0"]
[WhiteElo "2602"]
[BlackElo "2447"]
[TimeControl "180+1"]
[EndTime "14:55:34 PDT"]
[Termination "IgorBjelobrk won by resignation"]

1. d4 {[%clk 0:00:21.4]} 1... Nf6 {[%clk 0:02:53.3]} 2. c4 {[%clk 0:00:21.9]}
2... c5 {[%clk 0:02:53.6]} 3. d5 {[%clk 0:00:21.8]} 3... e6 {[%clk 0:02:54.5]}
4. Nc3 {[%clk 0:00:21.7]} 4... exd5 {[%clk 0:02:55.4]} 5. cxd5 {[%clk
0:00:22.6]} 5... d6 {[%clk 0:02:56.1]} 6. Nf3 {[%clk 0:00:23.5]} 6... g6 {[%clk
0:02:54.6]} 7. g3 {[%clk 0:00:24.2]} 7... Bg7 {[%clk 0:02:53.7]} 8. Bg2 {[%clk
0:00:25.1]} 8... O-O {[%clk 0:02:53.9]} 9. O-O {[%clk 0:00:25.7]} 9... Re8
{[%clk 0:02:54.2]} 10. Re1 {[%clk 0:00:25.7]} 10... h6 {[%clk 0:02:54.2]} 11. a4
{[%clk 0:00:25.4]} 11... Na6 {[%clk 0:02:53.2]} 12. Nd2 {[%clk 0:00:25.4]} 12...
Nb4 {[%clk 0:02:53.2]} 13. Nc4 {[%clk 0:00:25.7]} 13... g5 {[%clk 0:02:52.2]}
14. e4 {[%clk 0:00:25.7]} 14... Bg4 {[%clk 0:02:51.2]} 15. f3 {[%clk 0:00:25.7]}
15... Bc8 {[%clk 0:02:51]} 16. Be3 {[%clk 0:00:26]} 16... Rb8 {[%clk 0:02:38.4]}
17. Qd2 {[%clk 0:00:26]} 17... a6 {[%clk 0:02:33.6]} 18. a5 {[%clk 0:00:26]}
18... Qe7 {[%clk 0:02:33.3]} 19. Na4 {[%clk 0:00:25.7]} 19... Bd7 {[%clk
0:02:32.8]} 20. Nab6 {[%clk 0:00:26]} 20... Bb5 {[%clk 0:02:32.6]} 21. Rac1
{[%clk 0:00:26.5]} 21... Nd7 {[%clk 0:02:25]} 22. b3 {[%clk 0:00:26.5]} 22...
Nxb6 {[%clk 0:02:24.1]} 23. Nxb6 {[%clk 0:00:26.5]} 23... Nd3 {[%clk 0:02:22.7]}
24. Bf1 {[%clk 0:00:24.4]} 24... Nxe1 {[%clk 0:02:22.6]} 25. Rxe1 {[%clk
0:00:24]} 25... Bxf1 {[%clk 0:02:21.7]} 26. Rxf1 {[%clk 0:00:24.9]} 26... f5
{[%clk 0:02:19.2]} 27. Re1 {[%clk 0:00:22.4]} 27... fxe4 {[%clk 0:02:19.1]} 28.
Bf2 {[%clk 0:00:22.9]} 28... Qf7 {[%clk 0:01:54.7]} 29. fxe4 {[%clk 0:00:23.1]}
29... Rf8 {[%clk 0:01:54.3]} 30. Nc4 {[%clk 0:00:22.5]} 30... Rbd8 {[%clk
0:01:49.6]} 31. Kg2 {[%clk 0:00:21.5]} 31... Qg6 {[%clk 0:01:44.7]} 32. Qd3
{[%clk 0:00:20.5]} 32... Rf7 {[%clk 0:01:42.1]} 33. Ne3 {[%clk 0:00:19.9]} 33...
Bd4 {[%clk 0:01:37.1]} 34. Nf5 {[%clk 0:00:19.8]} 34... Bxf2 {[%clk 0:01:37.2]}
35. Kxf2 {[%clk 0:00:20.7]} 35... Re8 {[%clk 0:01:34.7]} 36. g4 {[%clk
0:00:20.8]} 36... Qf6 {[%clk 0:01:31.3]} 37. Kg2 {[%clk 0:00:20.1]} 37... Re5
{[%clk 0:01:29.2]} 38. Re2 {[%clk 0:00:20]} 38... Kh7 {[%clk 0:01:29]} 39. h3
{[%clk 0:00:20.3]} 39... Rf8 {[%clk 0:01:26.3]} 40. Qc4 {[%clk 0:00:20.6]} 40...
Rfe8 {[%clk 0:01:22.9]} 41. b4 {[%clk 0:00:20.6]} 41... Qd8 {[%clk 0:00:41.4]}
42. bxc5 {[%clk 0:00:20.1]} 42... dxc5 {[%clk 0:00:35]} 43. Qa4 {[%clk
0:00:18.1]} 43... Qc7 {[%clk 0:00:23.2]} 44. Kf3 {[%clk 0:00:16.5]} 44... c4
{[%clk 0:00:15.5]} 45. Qb4 {[%clk 0:00:14.5]} 45... c3 {[%clk 0:00:15]} 46. Qb3
{[%clk 0:00:12.9]} 46... Qxa5 {[%clk 0:00:10.9]} 47. Qxb7+ {[%clk 0:00:11.4]}
47... R8e7 {[%clk 0:00:08.2]} 48. Nxe7 {[%clk 0:00:11.2]} 48... Qb5 {[%clk
0:00:08.4]} 49. Qxb5 {[%clk 0:00:10.3]} 49... axb5 {[%clk 0:00:09.3]} 50. Nf5
{[%clk 0:00:10.8]} 50... b4 {[%clk 0:00:09.5]} 51. Nd4 {[%clk 0:00:11.3]} 51...
Re8 {[%clk 0:00:08.7]} 52. Ke3 {[%clk 0:00:11.6]} 52... Rb8 {[%clk 0:00:08.3]}
53. Nb3 {[%clk 0:00:11.9]} 53... Ra8 {[%clk 0:00:08.1]} 54. Kd3 {[%clk
0:00:12.2]} 54... Ra3 {[%clk 0:00:08.5]} 55. Kc4 {[%clk 0:00:12.7]} 55... Ra1
{[%clk 0:00:07]} 56. Nxa1 {[%clk 0:00:12.2]} 1-0

[Event "Late-Titled-Tuesday-Blitz-September-26-2023"]
[Site "Chess.com"]
[Date "2023.09.26"]
[Round "5"]
[White "as9killer2"]
[Black "komogro"]
[Result "0-1"]
[WhiteElo "2575"]
[BlackElo "2442"]
[TimeControl "180+1"]
[EndTime "14:55:34 PDT"]
[Termination "komogro won on time"]

1. c4 {[%clk 0:03:00.9]} 1... Nf6 {[%clk 0:02:59.3]} 2. Nc3 {[%clk 0:03:01.3]}
2... g6 {[%clk 0:02:58.1]} 3. e4 {[%clk 0:03:01.7]} 3... Bg7 {[%clk 0:02:58.9]}
4. g3 {[%clk 0:03:00.4]} 4... O-O {[%clk 0:02:58.6]} 5. Bg2 {[%clk 0:03:00.9]}
5... d6 {[%clk 0:02:59.2]} 6. Nge2 {[%clk 0:03:01.3]} 6... c6 {[%clk 0:02:59.5]}
7. O-O {[%clk 0:03:00.7]} 7... e5 {[%clk 0:03:00.4]} 8. d3 {[%clk 0:02:58.8]}
8... Nbd7 {[%clk 0:03:00.1]} 9. h3 {[%clk 0:02:57.9]} 9... a5 {[%clk 0:02:59.7]}
10. Be3 {[%clk 0:02:58.6]} 10... Ne8 {[%clk 0:02:55.1]} 11. f4 {[%clk
0:02:56.1]} 11... Nc7 {[%clk 0:02:54.1]} 12. f5 {[%clk 0:02:55.1]} 12... g5
{[%clk 0:02:44.9]} 13. f6 {[%clk 0:02:38.7]} 13... Bxf6 {[%clk 0:02:41.7]} 14.
Qd2 {[%clk 0:02:38.3]} 14... Ne6 {[%clk 0:02:40.8]} 15. h4 {[%clk 0:02:27.3]}
15... gxh4 {[%clk 0:02:32]} 16. gxh4 {[%clk 0:02:21.4]} 16... Bxh4 {[%clk
0:02:29.9]} 17. Bh6 {[%clk 0:02:20]} 17... Bg5 {[%clk 0:02:27.9]} 18. Bxg5
{[%clk 0:02:15.2]} 18... Qxg5 {[%clk 0:02:28.6]} 19. Qxg5+ {[%clk 0:02:08.8]}
19... Nxg5 {[%clk 0:02:28.2]} 20. Ng3 {[%clk 0:02:07.7]} 20... Nc5 {[%clk
0:02:25.2]} 21. Rad1 {[%clk 0:02:01.5]} 21... f6 {[%clk 0:02:18.3]} 22. Nh5
{[%clk 0:01:56.5]} 22... Bg4 {[%clk 0:02:13.7]} 23. Nxf6+ {[%clk 0:01:56.3]}
23... Rxf6 {[%clk 0:02:12.5]} 24. Rxf6 {[%clk 0:01:56.9]} 24... Bxd1 {[%clk
0:02:11.3]} 25. Nxd1 {[%clk 0:01:57.3]} 25... Rd8 {[%clk 0:02:02.1]} 26. Nf2
{[%clk 0:01:54.9]} 26... Nge6 {[%clk 0:01:56.9]} 27. Bf1 {[%clk 0:01:34.6]}
27... Kg7 {[%clk 0:01:50.2]} 28. Rf5 {[%clk 0:01:30]} 28... Nd4 {[%clk
0:01:48.8]} 29. Rg5+ {[%clk 0:01:28.6]} 29... Kf6 {[%clk 0:01:48.5]} 30. Rg3
{[%clk 0:01:27.7]} 30... h5 {[%clk 0:01:46.2]} 31. Kh2 {[%clk 0:01:14.9]} 31...
Rf8 {[%clk 0:01:29.4]} 32. Kh3 {[%clk 0:01:11.1]} 32... Ke6 {[%clk 0:01:22.2]}
33. Rg6+ {[%clk 0:01:04.2]} 33... Kd7 {[%clk 0:01:05.4]} 34. Rg7+ {[%clk
0:01:02]} 34... Ke8 {[%clk 0:01:03]} 35. Kg2 {[%clk 0:01:01.7]} 35... Rf7 {[%clk
0:00:59.9]} 36. Rg5 {[%clk 0:00:59.6]} 36... Rh7 {[%clk 0:00:58.8]} 37. Kg3
{[%clk 0:00:52.7]} 37... Ke7 {[%clk 0:00:56.6]} 38. Bh3 {[%clk 0:00:52.3]} 38...
Kf6 {[%clk 0:00:53.4]} 39. Rg8 {[%clk 0:00:45.9]} 39... Rg7+ {[%clk 0:00:50.5]}
40. Rxg7 {[%clk 0:00:46]} 40... Kxg7 {[%clk 0:00:50.2]} 41. Kh4 {[%clk
0:00:41.5]} 41... Kh6 {[%clk 0:00:45.1]} 42. Bc8 {[%clk 0:00:41.3]} 42... Nf3+
{[%clk 0:00:42.6]} 43. Kg3 {[%clk 0:00:40]} 43... Ne1 {[%clk 0:00:42.1]} 44. b3
{[%clk 0:00:31.1]} 44... Kg5 {[%clk 0:00:39.7]} 45. Nh3+ {[%clk 0:00:30.5]}
45... Kh6 {[%clk 0:00:39.1]} 46. Nf2 {[%clk 0:00:30.8]} 46... b6 {[%clk
0:00:35.3]} 47. Bf5 {[%clk 0:00:15.2]} 47... Nexd3 {[%clk 0:00:31.3]} 48. Nd1
{[%clk 0:00:15.5]} 48... Nc1 {[%clk 0:00:28.8]} 49. Nc3 {[%clk 0:00:15.8]} 49...
Kg5 {[%clk 0:00:23]} 50. Kf3 {[%clk 0:00:16]} 50... h4 {[%clk 0:00:21.9]} 51.
Bh3 {[%clk 0:00:15.7]} 51... N1d3 {[%clk 0:00:19.4]} 52. Bf5 {[%clk 0:00:15.8]}
52... Ne1+ {[%clk 0:00:18.5]} 53. Ke2 {[%clk 0:00:15.5]} 53... Nc2 {[%clk
0:00:18.6]} 54. Kd2 {[%clk 0:00:13.7]} 54... Nd4 {[%clk 0:00:18.2]} 55. Bh3
{[%clk 0:00:13.3]} 55... Kf4 {[%clk 0:00:17.3]} 56. Bc8 {[%clk 0:00:10.4]} 56...
Nxe4+ {[%clk 0:00:16.9]} 57. Nxe4 {[%clk 0:00:08.5]} 57... Kxe4 {[%clk
0:00:17.5]} 0-1

[Event "Late-Titled-Tuesday-Blitz-September-26-2023"]
[Site "Chess.com"]
[Date "2023.09.26"]
[Round "5"]
[White "AEMEffi"]
[Black "Misticpikachu"]
[Result "0-1"]
[WhiteElo "2366"]
[BlackElo "2560"]
[TimeControl "180+1"]
[EndTime "14:55:36 PDT"]
[Termination "Misticpikachu won by resignation"]

1. d4 {[%clk 0:03:00.9]} 1... d6 {[%clk 0:00:01.2]} 2. c4 {[%clk 0:02:57.9]}
2... c6 {[%clk 0:00:02.1]} 3. Nc3 {[%clk 0:02:57.5]} 3... e6 {[%clk 0:00:03]} 4.
e4 {[%clk 0:02:57.3]} 4... Nf6 {[%clk 0:00:03.7]} 5. Nf3 {[%clk 0:02:51.1]} 5...
d5 {[%clk 0:00:04.2]} 6. e5 {[%clk 0:02:49.8]} 6... Nfd7 {[%clk 0:00:04.4]} 7.
h4 {[%clk 0:02:42.8]} 7... Be7 {[%clk 0:00:04.7]} 8. h5 {[%clk 0:02:42.9]} 8...
h6 {[%clk 0:00:04.8]} 9. Be3 {[%clk 0:02:31.9]} 9... b6 {[%clk 0:00:05.3]} 10.
Rh3 {[%clk 0:02:26.9]} 10... Bb7 {[%clk 0:00:05.7]} 11. Rg3 {[%clk 0:02:27]}
11... Bf8 {[%clk 0:00:05.8]} 12. cxd5 {[%clk 0:02:16.9]} 12... cxd5 {[%clk
0:00:05.9]} 13. Rc1 {[%clk 0:02:15]} 13... Nc6 {[%clk 0:00:06.3]} 14. a3 {[%clk
0:02:09.6]} 14... Rc8 {[%clk 0:00:06.7]} 15. Qa4 {[%clk 0:02:05.2]} 15... a6
{[%clk 0:00:05.8]} 16. b4 {[%clk 0:01:51.4]} 16... b5 {[%clk 0:00:06.2]} 17. Qb3
{[%clk 0:01:46.1]} 17... Qb6 {[%clk 0:00:06.5]} 18. Be2 {[%clk 0:01:39.3]} 18...
Rg8 {[%clk 0:00:05]} 19. Kf1 {[%clk 0:01:35.2]} 19... Be7 {[%clk 0:00:05.4]} 20.
Rd1 {[%clk 0:01:24.6]} 20... f6 {[%clk 0:00:05.9]} 21. Bxh6 {[%clk 0:01:23.2]}
21... fxe5 {[%clk 0:00:04.6]} 22. Rxg7 {[%clk 0:01:17.6]} 22... Rxg7 {[%clk
0:00:04.7]} 23. Bxg7 {[%clk 0:01:17.5]} 23... exd4 {[%clk 0:00:05.4]} 24. Nxd4
{[%clk 0:01:17.1]} 24... Nxd4 {[%clk 0:00:03.2]} 25. Bxd4 {[%clk 0:01:18]} 25...
Qd6 {[%clk 0:00:03.3]} 26. g3 {[%clk 0:01:07.6]} 26... e5 {[%clk 0:00:03.5]} 27.
Be3 {[%clk 0:01:00.9]} 27... Nf6 {[%clk 0:00:03.6]} 28. h6 {[%clk 0:00:58.7]}
28... d4 {[%clk 0:00:03.8]} 29. h7 {[%clk 0:00:57.2]} 29... Kd7 {[%clk
0:00:03.5]} 30. Nxb5 {[%clk 0:00:54.6]} 30... axb5 {[%clk 0:00:03.3]} 31. Bxb5+
{[%clk 0:00:54.5]} 31... Kc7 {[%clk 0:00:03.8]} 32. Rc1+ {[%clk 0:00:53.2]}
32... Kb6 {[%clk 0:00:03.2]} 33. Rxc8 {[%clk 0:00:52.9]} 33... Nxh7 {[%clk
0:00:03.7]} 34. Rh8 {[%clk 0:00:36.2]} 34... dxe3 {[%clk 0:00:03.7]} 35. Qxe3+
{[%clk 0:00:35.3]} 35... Kxb5 {[%clk 0:00:03.7]} 36. Rxh7 {[%clk 0:00:35.1]}
36... Qd1+ {[%clk 0:00:03.6]} 37. Qe1 {[%clk 0:00:34.3]} 37... Bg2+ {[%clk
0:00:04.3]} 38. Kxg2 {[%clk 0:00:34.9]} 38... Qxe1 {[%clk 0:00:04.6]} 39. Rxe7
{[%clk 0:00:35]} 39... Qe4+ {[%clk 0:00:05.1]} 40. Kg1 {[%clk 0:00:34.4]} 40...
Ka4 {[%clk 0:00:05.5]} 41. Ra7+ {[%clk 0:00:32.5]} 41... Kb3 {[%clk 0:00:05.8]}
42. Ra5 {[%clk 0:00:33.2]} 42... Qe1+ {[%clk 0:00:06]} 43. Kg2 {[%clk
0:00:32.5]} 43... e4 {[%clk 0:00:06.6]} 44. Re5 {[%clk 0:00:28.7]} 44... Qe2
{[%clk 0:00:05.8]} 45. Rf5 {[%clk 0:00:27.4]} 45... Kxa3 {[%clk 0:00:05.3]} 46.
Rf4 {[%clk 0:00:26]} 46... Kxb4 {[%clk 0:00:04.9]} 47. g4 {[%clk 0:00:25.7]}
47... Kc5 {[%clk 0:00:04.8]} 48. g5 {[%clk 0:00:25.4]} 48... e3 {[%clk
0:00:04.7]} 49. Kg3 {[%clk 0:00:23.7]} 49... exf2 {[%clk 0:00:04.7]} 50. Rxf2
{[%clk 0:00:23.8]} 50... Qe3+ {[%clk 0:00:04.1]} 51. Rf3 {[%clk 0:00:23.9]}
51... Qxg5+ {[%clk 0:00:04.5]} 52. Kf2 {[%clk 0:00:24.7]} 52... Qh4+ {[%clk
0:00:04.5]} 53. Rg3 {[%clk 0:00:24.8]} 53... Kd4 {[%clk 0:00:04.8]} 54. Kf3
{[%clk 0:00:25.7]} 54... Qe4+ {[%clk 0:00:04.2]} 55. Kf2 {[%clk 0:00:25.6]}
55... Qb1 {[%clk 0:00:05.1]} 56. Rg4+ {[%clk 0:00:24.8]} 56... Ke5 {[%clk
0:00:05.3]} 57. Rg3 {[%clk 0:00:25.7]} 57... Ke4 {[%clk 0:00:04.8]} 58. Re3+
{[%clk 0:00:25.8]} 58... Kd4 {[%clk 0:00:05.4]} 59. Re2 {[%clk 0:00:26]} 59...
Qb3 {[%clk 0:00:05.5]} 60. Rd2+ {[%clk 0:00:25.8]} 60... Ke4 {[%clk 0:00:05.6]}
61. Re2+ {[%clk 0:00:26.2]} 61... Kf4 {[%clk 0:00:06.1]} 62. Re7 {[%clk
0:00:25.4]} 62... Qb6+ {[%clk 0:00:04.7]} 63. Ke2 {[%clk 0:00:24.7]} 63... Qb5+
{[%clk 0:00:05.2]} 64. Kd2 {[%clk 0:00:24.5]} 64... Qb4+ {[%clk 0:00:05.3]} 65.
Kd3 {[%clk 0:00:25.4]} 65... Qxe7 {[%clk 0:00:05.5]} 0-1

[Event "Late-Titled-Tuesday-Blitz-September-26-2023"]
[Site "Chess.com"]
[Date "2023.09.26"]
[Round "5"]
[White "Saif_Malek04"]
[Black "Balla_Tamas"]
[Result "0-1"]
[WhiteElo "2565"]
[BlackElo "2427"]
[TimeControl "180+1"]
[EndTime "14:55:38 PDT"]
[Termination "Balla_Tamas won by checkmate"]

1. e4 {[%clk 0:02:58.1]} 1... c5 {[%clk 0:03:00.4]} 2. Nf3 {[%clk 0:02:57.7]}
2... Nc6 {[%clk 0:03:00.7]} 3. d4 {[%clk 0:02:58]} 3... cxd4 {[%clk 0:03:01.6]}
4. Nxd4 {[%clk 0:02:58.6]} 4... e5 {[%clk 0:03:02.2]} 5. Nb5 {[%clk 0:02:58]}
5... d6 {[%clk 0:03:02.5]} 6. N1c3 {[%clk 0:02:58]} 6... a6 {[%clk 0:03:03.1]}
7. Na3 {[%clk 0:02:57.5]} 7... b5 {[%clk 0:03:03.9]} 8. Nd5 {[%clk 0:02:57]}
8... Nge7 {[%clk 0:03:04]} 9. Be2 {[%clk 0:02:54.4]} 9... Nxd5 {[%clk 0:02:54]}
10. exd5 {[%clk 0:02:55.3]} 10... Nd4 {[%clk 0:02:53.7]} 11. O-O {[%clk
0:02:50]} 11... Be7 {[%clk 0:02:53.4]} 12. c3 {[%clk 0:02:47.7]} 12... Nf5
{[%clk 0:02:52.4]} 13. f4 {[%clk 0:02:25.7]} 13... exf4 {[%clk 0:02:26.4]} 14.
Bxf4 {[%clk 0:02:23.1]} 14... O-O {[%clk 0:02:23.2]} 15. Bd3 {[%clk 0:02:21.2]}
15... Bg5 {[%clk 0:02:17.1]} 16. Qd2 {[%clk 0:02:01.8]} 16... Bxf4 {[%clk
0:01:54.9]} 17. Rxf4 {[%clk 0:02:01]} 17... Qb6+ {[%clk 0:01:52.4]} 18. Kh1
{[%clk 0:01:56.7]} 18... Ne7 {[%clk 0:01:38]} 19. Raf1 {[%clk 0:01:45.6]} 19...
Ng6 {[%clk 0:01:27.9]} 20. R4f2 {[%clk 0:01:32.2]} 20... Bd7 {[%clk 0:01:18.6]}
21. Nc2 {[%clk 0:01:32]} 21... Rae8 {[%clk 0:01:18.4]} 22. Nd4 {[%clk
0:01:32.1]} 22... Re5 {[%clk 0:01:15.5]} 23. Bxg6 {[%clk 0:01:00]} 23... hxg6
{[%clk 0:01:16.4]} 24. Nf3 {[%clk 0:01:00.1]} 24... Rh5 {[%clk 0:01:11.2]} 25.
Ng5 {[%clk 0:00:53.2]} 25... Bf5 {[%clk 0:01:06.3]} 26. Qf4 {[%clk 0:00:43.3]}
26... f6 {[%clk 0:00:32.8]} 27. Nf3 {[%clk 0:00:29.7]} 27... Bd7 {[%clk
0:00:31.7]} 28. Qg3 {[%clk 0:00:23.7]} 28... Kh7 {[%clk 0:00:21.7]} 29. Nh4
{[%clk 0:00:19.7]} 29... Rg5 {[%clk 0:00:19.3]} 30. Qd3 {[%clk 0:00:17.2]} 30...
Re8 {[%clk 0:00:18.9]} 31. h3 {[%clk 0:00:16.3]} 31... Ree5 {[%clk 0:00:17.3]}
32. Qb1 {[%clk 0:00:08.6]} 32... Rxd5 {[%clk 0:00:17.1]} 33. Rf3 {[%clk
0:00:08.8]} 33... Qc5 {[%clk 0:00:13.8]} 34. Re1 {[%clk 0:00:07.1]} 34... Bf5
{[%clk 0:00:13.9]} 35. Qc1 {[%clk 0:00:05.7]} 35... Re5 {[%clk 0:00:11.4]} 36.
Ref1 {[%clk 0:00:05.7]} 36... Be4 {[%clk 0:00:10.8]} 37. R3f2 {[%clk 0:00:05.8]}
37... Rh5 {[%clk 0:00:08.5]} 38. Nf3 {[%clk 0:00:05.8]} 38... Bxf3 {[%clk
0:00:09]} 39. Rxf3 {[%clk 0:00:06]} 39... Ref5 {[%clk 0:00:08.5]} 40. Qd1 {[%clk
0:00:06]} 40... Rxf3 {[%clk 0:00:08.4]} 41. Rxf3 {[%clk 0:00:06.8]} 41... Rd5
{[%clk 0:00:07.6]} 42. Qe1 {[%clk 0:00:07]} 42... Qc4 {[%clk 0:00:06.6]} 43. Re3
{[%clk 0:00:05.8]} 43... Qxa2 {[%clk 0:00:06.6]} 44. Qh4+ {[%clk 0:00:05.4]}
44... Rh5 {[%clk 0:00:07]} 45. Qg3 {[%clk 0:00:04.4]} 45... Qxb2 {[%clk
0:00:06.6]} 46. Qxd6 {[%clk 0:00:03.8]} 46... Qc1+ {[%clk 0:00:07.1]} 47. Kh2
{[%clk 0:00:04.1]} 47... Qxe3 {[%clk 0:00:07.4]} 48. Qxa6 {[%clk 0:00:05]} 48...
Qe5+ {[%clk 0:00:07.8]} 49. Kg1 {[%clk 0:00:05.3]} 49... Rf5 {[%clk 0:00:08.3]}
50. Qa7 {[%clk 0:00:05.1]} 50... Qe1+ {[%clk 0:00:08.3]} 51. Kh2 {[%clk
0:00:05.3]} 51... Rf1 {[%clk 0:00:07.7]} 52. g4 {[%clk 0:00:01.9]} 52... Rh1+
{[%clk 0:00:07.8]} 53. Kg2 {[%clk 0:00:01.5]} 53... Qf1+ {[%clk 0:00:08.4]} 54.
Kg3 {[%clk 0:00:01.3]} 54... Rg1+ {[%clk 0:00:09.3]} 55. Kh4 {[%clk 0:00:01.7]}
55... Qe1+ {[%clk 0:00:10.1]} 56. Qf2 {[%clk 0:00:01.7]} 56... Qxf2# {[%clk
0:00:10.5]} 0-1